[Event "November 21 Early 2023"]
[Site "https://www.chess.com"]
[Date "2023.11.21"]
[Round "4"]
[White "Manukyan, Sargis A."]
[Black "Kubatko, Ivan"]
[Result "1-0"]
[Board "121"]
[TimeControl "180+1"]
[WhiteFideId "13303970"]
[BlackFideId "24111473"]
[WhiteElo "2204"]
[BlackElo "2285"]
[WhiteTeam "ARM"]
[BlackTeam "RUS"]
[WhiteClock "0:00:23"]
[BlackClock "0:00:04"]

1. d4 {[%clk 0:03:00]}  d5 {[%clk 0:02:59]} 2. c4 {[%clk 0:03:01]}  e6 {[%clk 0:02:59]} 3. Nc3 {[%clk 0:03:02]}  c5 {[%clk 0:02:58]} 4. cxd5 {[%clk 0:03:02]}  cxd4 {[%clk 0:02:58]} 5. Qxd4 {[%clk 0:03:02]}  Nc6 {[%clk 0:02:58]} 6. Qd1 {[%clk 0:03:02]}  exd5 {[%clk 0:02:58]} 7. e3 {[%clk 0:03:02]}  Nf6 {[%clk 0:02:58]} 8. Nf3 {[%clk 0:03:03]}  Bd6 {[%clk 0:02:57]} 9. Be2 {[%clk 0:03:03]}  O-O {[%clk 0:02:57]} 10. O-O {[%clk 0:03:03]}  a6 {[%clk 0:02:58]} 11. a3 {[%clk 0:03:04]}  Bc7 {[%clk 0:02:57]} 12. b4 {[%clk 0:03:05]}  Qd6 {[%clk 0:02:57]} 13. Bb2 {[%clk 0:03:05]}  Bg4 {[%clk 0:02:57]} 14. g3 {[%clk 0:03:05]}  Rfe8 {[%clk 0:02:44]} 15. Nd4 {[%clk 0:03:05]}  Bh3 {[%clk 0:02:38]} 16. Re1 {[%clk 0:03:00]}  Ne5 {[%clk 0:02:31]} 17. Rc1 {[%clk 0:02:49]}  Nc4 {[%clk 0:01:54]} 18. Rc2 {[%clk 0:02:09]}  b5 {[%clk 0:01:35]} 19. Ncxb5 {[%clk 0:01:54]}  axb5 {[%clk 0:01:26]} 20. Nxb5 {[%clk 0:01:54]}  Qc6 {[%clk 0:01:17]} 21. Nxc7 {[%clk 0:01:49]}  Qxc7 {[%clk 0:01:17]} 22. Bxf6 {[%clk 0:01:49]}  gxf6 {[%clk 0:00:56]} 23. Rc1 {[%clk 0:01:13]}  Qe5 {[%clk 0:00:52]} 24. Bg4 {[%clk 0:01:10]}  Bxg4 {[%clk 0:00:43]} 25. Qxg4+ {[%clk 0:01:11]}  Qg5 {[%clk 0:00:41]} 26. Qf3 {[%clk 0:01:02]}  Rxa3 {[%clk 0:00:35]} 27. Rcd1 {[%clk 0:01:00]}  Re5 {[%clk 0:00:33]} 28. Rd4 {[%clk 0:00:56]}  Nd6 {[%clk 0:00:23]} 29. Rg4 {[%clk 0:00:55]}  Ne4 {[%clk 0:00:13]} 30. Rxg5+ {[%clk 0:00:55]}  fxg5 {[%clk 0:00:14]} 31. Rc1 {[%clk 0:00:51]}  Kg7 {[%clk 0:00:13]} 32. b5 {[%clk 0:00:49]}  Ra2 {[%clk 0:00:13]} 33. b6 {[%clk 0:00:47]}  Rb2 {[%clk 0:00:11]} 34. Rc7 {[%clk 0:00:43]}  Rxf2 {[%clk 0:00:06]} 35. Rxf7+ {[%clk 0:00:42]}  Kg6 {[%clk 0:00:06]} 36. Qxf2 {[%clk 0:00:29]}  Nxf2 {[%clk 0:00:06]} 37. Rxf2 {[%clk 0:00:29]}  Rxe3 {[%clk 0:00:02]} 38. Rb2 {[%clk 0:00:29]}  Re8 {[%clk 0:00:02]} 39. b7 {[%clk 0:00:30]}  Rb8 {[%clk 0:00:03]} 40. Kf2 {[%clk 0:00:31]}  Kf5 {[%clk 0:00:04]} 41. Ke3 {[%clk 0:00:31]}  Ke5 {[%clk 0:00:04]} 42. Kd3 {[%clk 0:00:32]}  g4 {[%clk 0:00:02]} 43. Rb1 {[%clk 0:00:31]}  h5 {[%clk 0:00:02]} 44. Rb2 {[%clk 0:00:32]}  Kd6 {[%clk 0:00:01]} 45. Kd4 {[%clk 0:00:32]}  Kc6 {[%clk 0:00:01]} 46. Rb3 {[%clk 0:00:31]}  Kd6 {[%clk 0:00:02]} 47. Rb6+ {[%clk 0:00:27]}  Kc7 {[%clk 0:00:02]} 48. Kc5 {[%clk 0:00:25]}  d4 {[%clk 0:00:02]} 49. Rb2 {[%clk 0:00:22]}  Rxb7 {[%clk 0:00:01]} 50. Rxb7+ {[%clk 0:00:22]}  Kxb7 {[%clk 0:00:02]} 51. Kxd4 {[%clk 0:00:23]}  Kc6 {[%clk 0:00:03]} 52. Ke5 {[%clk 0:00:24]}  Kc5 {[%clk 0:00:03]} 53. Kf5 {[%clk 0:00:20]}  Kd4 {[%clk 0:00:04]} 54. Kg5 {[%clk 0:00:21]}  Ke3 {[%clk 0:00:05]} 55. Kxh5 {[%clk 0:00:22]}  Kf3 {[%clk 0:00:04]} 56. Kh4 {[%clk 0:00:23]} 1-0

[Event "November 21 Early 2023"]
[Site "https://www.chess.com"]
[Date "2023.11.21"]
[Round "4"]
[White "Koridze, Lile"]
[Black "Pham, Le Thao Nguyen"]
[Result "0-1"]
[Board "124"]
[TimeControl "180+1"]
[WhiteFideId "13612514"]
[BlackFideId "12401226"]
[WhiteElo "2061"]
[BlackElo "2261"]
[WhiteTeam "GEO"]
[BlackTeam "VIE"]
[WhiteClock "0:01:07"]
[BlackClock "0:00:59"]

1. d4 {[%clk 0:03:00]}  d5 {[%clk 0:02:53]} 2. c4 {[%clk 0:03:01]}  c6 {[%clk 0:02:53]} 3. Nf3 {[%clk 0:02:54]}  Nf6 {[%clk 0:02:53]} 4. e3 {[%clk 0:02:53]}  Bg4 {[%clk 0:02:52]} 5. Nc3 {[%clk 0:02:52]}  e6 {[%clk 0:02:52]} 6. Be2 {[%clk 0:02:50]}  Nbd7 {[%clk 0:02:51]} 7. h3 {[%clk 0:02:50]}  Bh5 {[%clk 0:02:50]} 8. Qb3 {[%clk 0:02:47]}  Qb6 {[%clk 0:02:49]} 9. c5 {[%clk 0:02:48]}  Qxb3 {[%clk 0:02:31]} 10. axb3 {[%clk 0:02:47]}  a6 {[%clk 0:02:32]} 11. g4 {[%clk 0:02:17]}  Bg6 {[%clk 0:02:30]} 12. Nh4 {[%clk 0:02:17]}  Rc8 {[%clk 0:01:27]} 13. b4 {[%clk 0:02:08]}  Be7 {[%clk 0:01:08]} 14. Nxg6 {[%clk 0:01:24]}  hxg6 {[%clk 0:01:08]} 15. f4 {[%clk 0:01:17]}  Ne4 {[%clk 0:01:08]} 16. Bd3 {[%clk 0:01:09]}  Bh4+ {[%clk 0:01:00]} 17. Kd1 {[%clk 0:01:07]}  Nf2+ {[%clk 0:00:59]} 0-1

[Event "November 21 Early 2023"]
[Site "https://www.chess.com"]
[Date "2023.11.21"]
[Round "4"]
[White "Jovic, Stanoje"]
[Black "Bobomurodova, Maftuna"]
[Result "0-1"]
[Board "126"]
[TimeControl "180+1"]
[WhiteFideId "905020"]
[BlackFideId "14207400"]
[WhiteElo "2249"]
[BlackElo "1814"]
[WhiteTeam "SRB"]
[BlackTeam "UZB"]
[WhiteClock "0:00:00"]
[BlackClock "0:00:52"]

1. c4 {[%clk 0:03:00]}  e5 {[%clk 0:02:59]} 2. g3 {[%clk 0:03:00]}  d6 {[%clk 0:02:58]} 3. Bg2 {[%clk 0:02:59]}  g6 {[%clk 0:02:58]} 4. d4 {[%clk 0:02:59]}  Bg7 {[%clk 0:02:54]} 5. dxe5 {[%clk 0:02:58]}  dxe5 {[%clk 0:02:52]} 6. Qxd8+ {[%clk 0:02:56]}  Kxd8 {[%clk 0:02:53]} 7. Nc3 {[%clk 0:02:57]}  c6 {[%clk 0:02:53]} 8. h4 {[%clk 0:02:50]}  Be6 {[%clk 0:02:50]} 9. b3 {[%clk 0:02:48]}  Nd7 {[%clk 0:02:41]} 10. h5 {[%clk 0:02:47]}  f5 {[%clk 0:02:27]} 11. h6 {[%clk 0:02:44]}  Bf6 {[%clk 0:02:27]} 12. Bb2 {[%clk 0:02:39]}  Ne7 {[%clk 0:02:24]} 13. O-O-O {[%clk 0:02:37]}  Kc7 {[%clk 0:02:24]} 14. e4 {[%clk 0:02:34]}  Rad8 {[%clk 0:02:22]} 15. f4 {[%clk 0:02:32]}  Nc5 {[%clk 0:02:17]} 16. fxe5 {[%clk 0:02:25]}  Bg5+ {[%clk 0:01:54]} 17. Kc2 {[%clk 0:02:25]}  Rxd1 {[%clk 0:01:52]} 18. Kxd1 {[%clk 0:02:24]}  Rd8+ {[%clk 0:01:51]} 19. Kc2 {[%clk 0:02:24]}  Rd2+ {[%clk 0:01:49]} 20. Kb1 {[%clk 0:02:21]}  Rxg2 {[%clk 0:01:49]} 21. Nf3 {[%clk 0:02:21]}  Rxg3 {[%clk 0:01:44]} 22. Nxg5 {[%clk 0:02:18]}  Rxg5 {[%clk 0:01:43]} 23. Nd5+ {[%clk 0:02:10]}  cxd5 {[%clk 0:01:38]} 24. exd5 {[%clk 0:02:10]}  f4 {[%clk 0:01:13]} 25. d6+ {[%clk 0:01:59]}  Kd7 {[%clk 0:01:11]} 26. dxe7 {[%clk 0:01:58]}  Kxe7 {[%clk 0:01:10]} 27. Bd4 {[%clk 0:01:42]}  b6 {[%clk 0:01:06]} 28. b4 {[%clk 0:01:40]}  Bf5+ {[%clk 0:01:03]} 29. Ka1 {[%clk 0:01:38]}  Ne6 {[%clk 0:01:03]} 30. Bf2 {[%clk 0:01:33]}  Rg2 {[%clk 0:01:02]} 31. Bh4+ {[%clk 0:01:29]}  g5 {[%clk 0:01:01]} 32. Be1 {[%clk 0:01:26]}  f3 {[%clk 0:00:59]} 33. Rf1 {[%clk 0:01:13]}  g4 {[%clk 0:00:58]} 34. c5 {[%clk 0:01:12]}  bxc5 {[%clk 0:00:56]} 35. bxc5 {[%clk 0:01:13]}  Nd4 {[%clk 0:00:54]} 36. Bc3 {[%clk 0:00:00]}  Nc2+ {[%clk 0:00:52]} 0-1

[Event "November 21 Early 2023"]
[Site "https://www.chess.com"]
[Date "2023.11.21"]
[Round "4"]
[White "elmusmolamas"]
[Black "Kornyukov, Alexey"]
[Result "1-0"]
[Board "127"]
[TimeControl "180+1"]
[BlackFideId "4150457"]
[WhiteElo "2549"]
[BlackElo "2352"]
[BlackTeam "RUS"]
[WhiteClock "0:00:16"]
[BlackClock "0:00:28"]

1. e4 {[%clk 0:03:00]}  c5 {[%clk 0:02:59]} 2. Nf3 {[%clk 0:03:01]}  Nc6 {[%clk 0:03:00]} 3. d4 {[%clk 0:03:01]}  cxd4 {[%clk 0:03:00]} 4. Nxd4 {[%clk 0:03:02]}  e5 {[%clk 0:03:01]} 5. Ne2 {[%clk 0:03:02]}  Nf6 {[%clk 0:03:00]} 6. Nbc3 {[%clk 0:03:02]}  Bb4 {[%clk 0:03:00]} 7. a3 {[%clk 0:02:59]}  Bxc3+ {[%clk 0:02:59]} 8. Nxc3 {[%clk 0:03:00]}  h6 {[%clk 0:02:59]} 9. Bc4 {[%clk 0:03:00]}  O-O {[%clk 0:02:57]} 10. O-O {[%clk 0:03:01]}  d6 {[%clk 0:02:58]} 11. Qe2 {[%clk 0:02:52]}  Nd4 {[%clk 0:02:57]} 12. Qd3 {[%clk 0:02:51]}  a6 {[%clk 0:02:49]} 13. Be3 {[%clk 0:02:49]}  b5 {[%clk 0:02:47]} 14. Bd5 {[%clk 0:02:35]}  Nxd5 {[%clk 0:02:42]} 15. Nxd5 {[%clk 0:02:36]}  Ne6 {[%clk 0:02:36]} 16. a4 {[%clk 0:02:33]}  Bd7 {[%clk 0:02:33]} 17. a5 {[%clk 0:02:32]}  Bc6 {[%clk 0:02:31]} 18. c3 {[%clk 0:02:29]}  Nc5 {[%clk 0:02:28]} 19. Bxc5 {[%clk 0:02:20]}  dxc5 {[%clk 0:02:29]} 20. Rfd1 {[%clk 0:02:20]}  c4 {[%clk 0:02:25]} 21. Qe3 {[%clk 0:02:14]}  Bxd5 {[%clk 0:02:21]} 22. Rxd5 {[%clk 0:02:13]}  Qc7 {[%clk 0:02:21]} 23. Qc5 {[%clk 0:02:04]}  Qxc5 {[%clk 0:02:13]} 24. Rxc5 {[%clk 0:02:05]}  f6 {[%clk 0:02:12]} 25. Rd1 {[%clk 0:02:02]}  Rfd8 {[%clk 0:02:08]} 26. Rcd5 {[%clk 0:01:50]}  Rxd5 {[%clk 0:02:08]} 27. Rxd5 {[%clk 0:01:51]}  Kf7 {[%clk 0:02:01]} 28. Kf1 {[%clk 0:01:51]}  Ke6 {[%clk 0:02:00]} 29. Ke2 {[%clk 0:01:50]}  Rc8 {[%clk 0:01:57]} 30. f3 {[%clk 0:01:44]}  Rb8 {[%clk 0:01:57]} 31. Kd2 {[%clk 0:01:41]}  Rb7 {[%clk 0:01:50]} 32. Kc2 {[%clk 0:01:39]}  Rd7 {[%clk 0:01:49]} 33. Rc5 {[%clk 0:01:38]}  Rd3 {[%clk 0:01:41]} 34. Rc6+ {[%clk 0:01:34]}  Rd6 {[%clk 0:01:41]} 35. Rc7 {[%clk 0:01:34]}  Rd7 {[%clk 0:01:39]} 36. Rc8 {[%clk 0:01:31]}  Ke7 {[%clk 0:01:36]} 37. Ra8 {[%clk 0:01:20]}  Rd6 {[%clk 0:01:34]} 38. Ra7+ {[%clk 0:01:21]}  Kf8 {[%clk 0:01:33]} 39. Rc7 {[%clk 0:01:21]}  Kg8 {[%clk 0:01:30]} 40. Rb7 {[%clk 0:01:21]}  Rd8 {[%clk 0:01:20]} 41. h4 {[%clk 0:01:12]}  Kf8 {[%clk 0:01:18]} 42. h5 {[%clk 0:01:11]}  Ra8 {[%clk 0:01:13]} 43. b3 {[%clk 0:01:03]}  cxb3+ {[%clk 0:01:09]} 44. Kxb3 {[%clk 0:01:04]}  Rc8 {[%clk 0:01:08]} 45. Rb6 {[%clk 0:01:03]}  Ra8 {[%clk 0:01:07]} 46. Kb4 {[%clk 0:00:36]}  Kf7 {[%clk 0:01:03]} 47. Rc6 {[%clk 0:00:35]}  Ke7 {[%clk 0:00:59]} 48. Rc7+ {[%clk 0:00:31]}  Kf8 {[%clk 0:00:54]} 49. Kc5 {[%clk 0:00:31]}  Rd8 {[%clk 0:00:47]} 50. Kb6 {[%clk 0:00:28]}  Rd6+ {[%clk 0:00:44]} 51. Rc6 {[%clk 0:00:28]}  Rxc6+ {[%clk 0:00:34]} 52. Kxc6 {[%clk 0:00:28]}  Ke7 {[%clk 0:00:35]} 53. Kb6 {[%clk 0:00:25]}  Kd6 {[%clk 0:00:34]} 54. Kxa6 {[%clk 0:00:26]}  Kc6 {[%clk 0:00:33]} 55. g3 {[%clk 0:00:22]}  Kc5 {[%clk 0:00:32]} 56. Kb7 {[%clk 0:00:21]}  Kc4 {[%clk 0:00:29]} 57. Kb6 {[%clk 0:00:21]}  Kxc3 {[%clk 0:00:26]} 58. Kxb5 {[%clk 0:00:22]}  Kd3 {[%clk 0:00:27]} 59. a6 {[%clk 0:00:22]}  Ke3 {[%clk 0:00:28]} 60. a7 {[%clk 0:00:22]}  Kxf3 {[%clk 0:00:28]} 61. a8=Q {[%clk 0:00:23]}  Kxg3 {[%clk 0:00:28]} 62. Kc4 {[%clk 0:00:22]}  Kh4 {[%clk 0:00:28]} 63. Qe8 {[%clk 0:00:22]}  Kg5 {[%clk 0:00:26]} 64. Qg6+ {[%clk 0:00:22]}  Kh4 {[%clk 0:00:27]} 65. Kd3 {[%clk 0:00:20]}  Kh3 {[%clk 0:00:26]} 66. Ke2 {[%clk 0:00:20]}  Kh2 {[%clk 0:00:27]} 67. Kf2 {[%clk 0:00:20]}  Kh3 {[%clk 0:00:28]} 68. Qg3# {[%clk 0:00:16]} 1-0

[Event "November 21 Early 2023"]
[Site "https://www.chess.com"]
[Date "2023.11.21"]
[Round "4"]
[White "Poormosavi, Seyed Kian"]
[Black "Gutkin, Ilya"]
[Result "0-1"]
[Board "133"]
[TimeControl "180+1"]
[WhiteFideId "12585807"]
[BlackFideId "16203470"]
[WhiteElo "2296"]
[BlackElo "2248"]
[WhiteTeam "IRI"]
[BlackTeam "GER"]
[WhiteClock "0:00:08"]
[BlackClock "0:00:12"]

1. Nf3 {[%clk 0:02:51]}  d5 {[%clk 0:02:57]} 2. g3 {[%clk 0:02:50]}  c6 {[%clk 0:02:58]} 3. Bg2 {[%clk 0:02:50]}  Nf6 {[%clk 0:02:56]} 4. O-O {[%clk 0:02:48]}  Bf5 {[%clk 0:02:56]} 5. d3 {[%clk 0:02:47]}  e6 {[%clk 0:02:53]} 6. Nh4 {[%clk 0:02:43]}  Bd6 {[%clk 0:02:45]} 7. Nxf5 {[%clk 0:02:42]}  exf5 {[%clk 0:02:46]} 8. e3 {[%clk 0:02:37]}  Nbd7 {[%clk 0:02:43]} 9. c4 {[%clk 0:02:37]}  dxc4 {[%clk 0:02:43]} 10. dxc4 {[%clk 0:02:37]}  Qe7 {[%clk 0:02:37]} 11. Nc3 {[%clk 0:02:35]}  O-O {[%clk 0:02:35]} 12. Qc2 {[%clk 0:02:35]}  g6 {[%clk 0:02:35]} 13. b3 {[%clk 0:02:35]}  Rad8 {[%clk 0:02:27]} 14. Bb2 {[%clk 0:02:33]}  Be5 {[%clk 0:02:21]} 15. Rfd1 {[%clk 0:02:33]}  Nc5 {[%clk 0:02:21]} 16. Ba3 {[%clk 0:02:24]}  Nfd7 {[%clk 0:01:52]} 17. Rab1 {[%clk 0:02:15]}  Qf6 {[%clk 0:01:50]} 18. Na4 {[%clk 0:02:14]}  b6 {[%clk 0:01:31]} 19. b4 {[%clk 0:02:05]}  Ne4 {[%clk 0:01:12]} 20. Bxe4 {[%clk 0:02:02]}  fxe4 {[%clk 0:01:13]} 21. Qxe4 {[%clk 0:02:02]}  Rfe8 {[%clk 0:01:08]} 22. Qc2 {[%clk 0:01:51]}  Bc7 {[%clk 0:00:59]} 23. Bb2 {[%clk 0:01:49]}  Be5 {[%clk 0:00:57]} 24. Nc3 {[%clk 0:01:34]}  Qf3 {[%clk 0:00:52]} 25. Rd3 {[%clk 0:01:27]}  Bf6 {[%clk 0:00:50]} 26. Rbd1 {[%clk 0:01:22]}  Ne5 {[%clk 0:00:50]} 27. Rxd8 {[%clk 0:01:20]}  Rxd8 {[%clk 0:00:50]} 28. Rxd8+ {[%clk 0:01:20]}  Bxd8 {[%clk 0:00:51]} 29. Ne4 {[%clk 0:01:12]}  Qf5 {[%clk 0:00:48]} 30. Bxe5 {[%clk 0:01:08]}  Qxe5 {[%clk 0:00:47]} 31. Qd3 {[%clk 0:01:04]}  Be7 {[%clk 0:00:46]} 32. a3 {[%clk 0:01:05]}  Kg7 {[%clk 0:00:41]} 33. Qd4 {[%clk 0:01:00]}  Bf6 {[%clk 0:00:25]} 34. Nxf6 {[%clk 0:00:57]}  Kxf6 {[%clk 0:00:26]} 35. Qxe5+ {[%clk 0:00:50]}  Kxe5 {[%clk 0:00:26]} 36. f3 {[%clk 0:00:50]}  b5 {[%clk 0:00:25]} 37. cxb5 {[%clk 0:00:21]}  cxb5 {[%clk 0:00:26]} 38. Kf2 {[%clk 0:00:21]}  Kd5 {[%clk 0:00:26]} 39. g4 {[%clk 0:00:19]}  Kc4 {[%clk 0:00:17]} 40. e4 {[%clk 0:00:18]}  Kb3 {[%clk 0:00:17]} 41. f4 {[%clk 0:00:14]}  Kxa3 {[%clk 0:00:17]} 42. e5 {[%clk 0:00:14]}  Kxb4 {[%clk 0:00:17]} 43. f5 {[%clk 0:00:14]}  Kc5 {[%clk 0:00:16]} 44. e6 {[%clk 0:00:12]}  fxe6 {[%clk 0:00:16]} 45. f6 {[%clk 0:00:12]}  Kd6 {[%clk 0:00:15]} 46. g5 {[%clk 0:00:13]}  e5 {[%clk 0:00:14]} 47. Ke3 {[%clk 0:00:14]}  b4 {[%clk 0:00:14]} 48. h4 {[%clk 0:00:13]}  a5 {[%clk 0:00:12]} 49. Kd3 {[%clk 0:00:14]}  a4 {[%clk 0:00:12]} 50. Kc4 {[%clk 0:00:15]}  a3 {[%clk 0:00:12]} 51. Kb3 {[%clk 0:00:16]}  e4 {[%clk 0:00:11]} 52. Kc2 {[%clk 0:00:12]}  Ke6 {[%clk 0:00:11]} 53. Kb3 {[%clk 0:00:12]}  Kf7 {[%clk 0:00:11]} 54. Kc2 {[%clk 0:00:11]}  e3 {[%clk 0:00:11]} 55. Kd3 {[%clk 0:00:08]}  a2 {[%clk 0:00:12]} 0-1

[Event "November 21 Early 2023"]
[Site "https://www.chess.com"]
[Date "2023.11.21"]
[Round "4"]
[White "Koellner, Ruben Gideon"]
[Black "Xie, Bryan"]
[Result "1-0"]
[Board "135"]
[TimeControl "180+1"]
[WhiteFideId "12993093"]
[BlackFideId "30941296"]
[WhiteElo "2347"]
[BlackElo "2033"]
[WhiteTeam "GER"]
[BlackTeam "USA"]
[WhiteClock "0:01:13"]
[BlackClock "0:00:01"]

1. d4 {[%clk 0:02:58]}  d5 {[%clk 0:02:57]} 2. Nf3 {[%clk 0:02:58]}  Nf6 {[%clk 0:02:56]} 3. e3 {[%clk 0:02:58]}  Bf5 {[%clk 0:02:51]} 4. Nbd2 {[%clk 0:02:57]}  e6 {[%clk 0:02:51]} 5. Ne5 {[%clk 0:02:56]}  Nbd7 {[%clk 0:02:47]} 6. g4 {[%clk 0:02:56]}  Be4 {[%clk 0:02:34]} 7. f3 {[%clk 0:02:55]}  Bg6 {[%clk 0:02:34]} 8. h4 {[%clk 0:02:55]}  Nxe5 {[%clk 0:02:16]} 9. dxe5 {[%clk 0:02:54]}  Nd7 {[%clk 0:02:17]} 10. h5 {[%clk 0:02:54]}  Nxe5 {[%clk 0:02:00]} 11. hxg6 {[%clk 0:02:53]}  Nxg6 {[%clk 0:02:01]} 12. f4 {[%clk 0:02:50]}  Bc5 {[%clk 0:02:00]} 13. Nf3 {[%clk 0:02:49]}  Qd7 {[%clk 0:01:55]} 14. Qd3 {[%clk 0:02:38]}  O-O-O {[%clk 0:01:53]} 15. Bd2 {[%clk 0:02:37]}  Qa4 {[%clk 0:01:46]} 16. Qb5 {[%clk 0:02:25]}  Qe4 {[%clk 0:01:40]} 17. Qxc5 {[%clk 0:02:25]}  Qxf3 {[%clk 0:01:39]} 18. Rh3 {[%clk 0:02:25]}  Qxg4 {[%clk 0:01:38]} 19. Qxa7 {[%clk 0:02:18]}  d4 {[%clk 0:01:20]} 20. Rd1 {[%clk 0:01:53]}  dxe3 {[%clk 0:01:06]} 21. Qxe3 {[%clk 0:01:47]}  Rd6 {[%clk 0:00:54]} 22. Be2 {[%clk 0:01:46]}  Qf5 {[%clk 0:00:53]} 23. Bd3 {[%clk 0:01:41]}  Qg4 {[%clk 0:00:52]} 24. Qg3 {[%clk 0:01:34]}  Qxg3+ {[%clk 0:00:45]} 25. Rxg3 {[%clk 0:01:35]}  Rhd8 {[%clk 0:00:43]} 26. Ke2 {[%clk 0:01:33]}  Rd4 {[%clk 0:00:41]} 27. Rf1 {[%clk 0:01:31]}  f5 {[%clk 0:00:33]} 28. Ke3 {[%clk 0:01:26]}  c5 {[%clk 0:00:28]} 29. Bc3 {[%clk 0:01:26]}  R4d7 {[%clk 0:00:29]} 30. b3 {[%clk 0:01:26]}  Ne7 {[%clk 0:00:25]} 31. Bxg7 {[%clk 0:01:20]}  Nd5+ {[%clk 0:00:25]} 32. Kf3 {[%clk 0:01:20]}  Nb4 {[%clk 0:00:16]} 33. Be5 {[%clk 0:01:17]}  Nxd3 {[%clk 0:00:16]} 34. cxd3 {[%clk 0:01:18]}  Rxd3+ {[%clk 0:00:17]} 35. Kg2 {[%clk 0:01:18]}  Rd2+ {[%clk 0:00:16]} 36. Rf2 {[%clk 0:01:18]}  Rxf2+ {[%clk 0:00:16]} 37. Kxf2 {[%clk 0:01:19]}  Rd2+ {[%clk 0:00:16]} 38. Ke3 {[%clk 0:01:20]}  Rxa2 {[%clk 0:00:17]} 39. Kd3 {[%clk 0:01:19]}  Rh2 {[%clk 0:00:10]} 40. Kc4 {[%clk 0:01:18]}  b6 {[%clk 0:00:09]} 41. Rg7 {[%clk 0:01:17]}  Kd8 {[%clk 0:00:03]} 42. Kb5 {[%clk 0:01:14]}  Rb2 {[%clk 0:00:01]} 43. Bxb2 {[%clk 0:01:13]} 1-0

[Event "November 21 Early 2023"]
[Site "https://www.chess.com"]
[Date "2023.11.21"]
[Round "4"]
[White "Ambartsumova, Karina"]
[Black "Pace, Christopher"]
[Result "0-1"]
[Board "136"]
[TimeControl "180+1"]
[WhiteFideId "4166299"]
[BlackFideId "2610167"]
[WhiteElo "2240"]
[BlackElo "2412"]
[WhiteTeam "RUS"]
[BlackTeam "CAN"]
[WhiteClock "0:00:00"]
[BlackClock "0:00:17"]

1. d4 {[%clk 0:03:00]}  Nf6 {[%clk 0:02:59]} 2. c4 {[%clk 0:03:00]}  g6 {[%clk 0:02:59]} 3. g3 {[%clk 0:03:00]}  Bg7 {[%clk 0:02:59]} 4. Bg2 {[%clk 0:03:00]}  O-O {[%clk 0:03:00]} 5. Nc3 {[%clk 0:03:00]}  d6 {[%clk 0:02:59]} 6. Nf3 {[%clk 0:03:01]}  Nc6 {[%clk 0:02:59]} 7. O-O {[%clk 0:03:01]}  e5 {[%clk 0:03:00]} 8. dxe5 {[%clk 0:02:59]}  dxe5 {[%clk 0:03:01]} 9. Bg5 {[%clk 0:02:59]}  Qxd1 {[%clk 0:02:56]} 10. Rfxd1 {[%clk 0:02:55]}  Be6 {[%clk 0:02:56]} 11. Nd2 {[%clk 0:02:43]}  h6 {[%clk 0:02:51]} 12. Bxf6 {[%clk 0:02:41]}  Bxf6 {[%clk 0:02:52]} 13. Nde4 {[%clk 0:02:41]}  Be7 {[%clk 0:02:43]} 14. Nd5 {[%clk 0:02:41]}  Bxd5 {[%clk 0:02:38]} 15. cxd5 {[%clk 0:02:42]}  Nd4 {[%clk 0:02:38]} 16. e3 {[%clk 0:02:41]}  Nf5 {[%clk 0:02:38]} 17. Rac1 {[%clk 0:02:35]}  Rac8 {[%clk 0:02:32]} 18. Bh3 {[%clk 0:02:32]}  Rfd8 {[%clk 0:02:30]} 19. Nc5 {[%clk 0:02:12]}  Rb8 {[%clk 0:02:14]} 20. Kf1 {[%clk 0:01:50]}  c6 {[%clk 0:01:57]} 21. Bg2 {[%clk 0:01:23]}  cxd5 {[%clk 0:01:50]} 22. Rxd5 {[%clk 0:01:08]}  Rxd5 {[%clk 0:01:44]} 23. Bxd5 {[%clk 0:01:09]}  Rc8 {[%clk 0:01:45]} 24. Nd3 {[%clk 0:01:06]}  Rxc1+ {[%clk 0:01:42]} 25. Nxc1 {[%clk 0:01:07]}  b6 {[%clk 0:01:42]} 26. Nd3 {[%clk 0:01:05]}  Bd6 {[%clk 0:01:42]} 27. Ke2 {[%clk 0:01:01]}  Ne7 {[%clk 0:01:42]} 28. Bc4 {[%clk 0:01:01]}  Kf8 {[%clk 0:01:36]} 29. h4 {[%clk 0:00:56]}  f5 {[%clk 0:01:31]} 30. Ne1 {[%clk 0:00:48]}  e4 {[%clk 0:01:23]} 31. Nc2 {[%clk 0:00:48]}  Nc6 {[%clk 0:01:19]} 32. Bb5 {[%clk 0:00:44]}  Ne5 {[%clk 0:01:13]} 33. Nd4 {[%clk 0:00:43]}  Kf7 {[%clk 0:01:03]} 34. h5 {[%clk 0:00:42]}  Bc5 {[%clk 0:00:58]} 35. hxg6+ {[%clk 0:00:41]}  Kxg6 {[%clk 0:00:58]} 36. Ne6 {[%clk 0:00:36]}  Be7 {[%clk 0:00:55]} 37. Be8+ {[%clk 0:00:32]}  Kf6 {[%clk 0:00:54]} 38. Nf4 {[%clk 0:00:31]}  Bd6 {[%clk 0:00:47]} 39. b3 {[%clk 0:00:22]}  Ke7 {[%clk 0:00:44]} 40. Bb5 {[%clk 0:00:18]}  Kf6 {[%clk 0:00:34]} 41. Ba6 {[%clk 0:00:18]}  Ke7 {[%clk 0:00:33]} 42. Bc8 {[%clk 0:00:17]}  Kf6 {[%clk 0:00:34]} 43. Nd5+ {[%clk 0:00:18]}  Kg5 {[%clk 0:00:34]} 44. a4 {[%clk 0:00:15]}  Nd3 {[%clk 0:00:33]} 45. Kf1 {[%clk 0:00:05]}  Nc5 {[%clk 0:00:30]} 46. b4 {[%clk 0:00:04]}  Nxa4 {[%clk 0:00:30]} 47. b5 {[%clk 0:00:05]}  Nb2 {[%clk 0:00:28]} 48. Ke2 {[%clk 0:00:03]}  Nc4 {[%clk 0:00:28]} 49. Bd7 {[%clk 0:00:03]}  Ne5 {[%clk 0:00:27]} 50. Bc8 {[%clk 0:00:03]}  Nd3 {[%clk 0:00:25]} 51. Bd7 {[%clk 0:00:02]}  h5 {[%clk 0:00:20]} 52. Be8 {[%clk 0:00:01]}  Nc5 {[%clk 0:00:21]} 53. Bc6 {[%clk 0:00:01]}  h4 {[%clk 0:00:20]} 54. gxh4+ {[%clk 0:00:01]}  Kxh4 {[%clk 0:00:21]} 55. Nf6 {[%clk 0:00:01]}  Kg5 {[%clk 0:00:21]} 56. Nd5 {[%clk 0:00:01]}  Nd3 {[%clk 0:00:18]} 57. Be8 {[%clk 0:00:00]}  Ne5 {[%clk 0:00:17]} 0-1